[Event "*** Titled Tuesday Blitz"]
[Site "Chess.com"]
[Date "2019.10.01"]
[Round "3"]
[White "Vuk2000"]
[Black "Didici"]
[Result "0-1"]
[WhiteElo "2800"]
[BlackElo "2621"]
[TimeControl "180+2"]
[EndTime "13:38:51 PDT"]
[Termination "Didici won by resignation"]

1. d4 {[%clk 0:03:01.9]} 1... f6 {[%clk 0:02:59.6]} 2. e4 {[%clk 0:03:00.1]}
2... e5 {[%clk 0:03:00.8]} 3. dxe5 {[%clk 0:02:58.8]} 3... Qe7 {[%clk
0:03:01.1]} 4. Bf4 {[%clk 0:02:53]} 4... Nc6 {[%clk 0:02:58.4]} 5. Nc3 {[%clk
0:02:44]} 5... fxe5 {[%clk 0:02:54.9]} 6. Be3 {[%clk 0:02:44.9]} 6... Nf6 {[%clk
0:02:53.4]} 7. Bc4 {[%clk 0:02:42.9]} 7... Qb4 {[%clk 0:02:50.7]} 8. Qd3 {[%clk
0:02:43]} 8... Nxe4 {[%clk 0:02:38.2]} 9. Ne2 {[%clk 0:02:26]} 9... Nf6 {[%clk
0:02:33.6]} 10. O-O {[%clk 0:02:23.3]} 10... Qe7 {[%clk 0:02:05.7]} 11. Bg5
{[%clk 0:02:15.1]} 11... Qd6 {[%clk 0:01:59.9]} 12. Qg3 {[%clk 0:02:09.7]} 12...
Qc5 {[%clk 0:01:49.9]} 13. Bxf6 {[%clk 0:01:51.7]} 13... gxf6 {[%clk 0:01:46.3]}
14. Qh4 {[%clk 0:01:52.1]} 14... Be7 {[%clk 0:01:38.8]} 15. Ne4 {[%clk
0:01:40.7]} 15... Qb4 {[%clk 0:01:32.3]} 16. a3 {[%clk 0:01:26.2]} 16... Qxb2
{[%clk 0:01:23.4]} 17. Bb3 {[%clk 0:01:27.5]} 17... Nd4 {[%clk 0:01:13.9]} 18.
N2g3 {[%clk 0:01:08.7]} 18... Nxb3 {[%clk 0:01:00.4]} 19. cxb3 {[%clk
0:01:07.1]} 19... Rf8 {[%clk 0:00:58.1]} 20. Qxh7 {[%clk 0:01:01]} 20... d6
{[%clk 0:00:55.6]} 21. Rfb1 {[%clk 0:00:50.9]} 21... Qd4 {[%clk 0:00:51.5]} 22.
Rd1 {[%clk 0:00:41.7]} 22... Qb6 {[%clk 0:00:50.5]} 23. Rac1 {[%clk 0:00:40.2]}
23... Be6 {[%clk 0:00:35.4]} 24. Nf5 {[%clk 0:00:34.5]} 24... Bxf5 {[%clk
0:00:30.6]} 25. Qxf5 {[%clk 0:00:36.4]} 25... Rd8 {[%clk 0:00:27.3]} 26. Nc3
{[%clk 0:00:29.3]} 26... c6 {[%clk 0:00:27.3]} 27. Rd3 {[%clk 0:00:23.7]} 27...
d5 {[%clk 0:00:26.8]} 28. Rh3 {[%clk 0:00:23.3]} 28... Rf7 {[%clk 0:00:22.2]}
29. Qe6 {[%clk 0:00:22.3]} 29... Qc7 {[%clk 0:00:07.7]} 30. g3 {[%clk
0:00:21.3]} 30... Qd7 {[%clk 0:00:07.8]} 31. Qxd7+ {[%clk 0:00:09.9]} 31... Kxd7
{[%clk 0:00:09.7]} 32. b4 {[%clk 0:00:11.5]} 32... Ke6 {[%clk 0:00:08.2]} 33.
Rh6 {[%clk 0:00:10.8]} 33... b6 {[%clk 0:00:07.8]} 34. h4 {[%clk 0:00:08.7]}
34... Rc8 {[%clk 0:00:08.6]} 35. Ne2 {[%clk 0:00:03.7]} 35... c5 {[%clk
0:00:09]} 36. g4 {[%clk 0:00:05.2]} 36... c4 {[%clk 0:00:09.5]} 37. f4 {[%clk
0:00:05]} 37... d4 {[%clk 0:00:07.5]} 38. fxe5 {[%clk 0:00:06.3]} 38... Kxe5
{[%clk 0:00:09.4]} 39. Rh5+ {[%clk 0:00:07.8]} 39... Ke4 {[%clk 0:00:09]} 40.
Ng3+ {[%clk 0:00:08.3]} 40... Kf3 {[%clk 0:00:09.4]} 41. Kh2 {[%clk 0:00:07.7]}
41... Bd6 {[%clk 0:00:08.2]} 42. Kh3 {[%clk 0:00:08]} 42... Bxg3 {[%clk
0:00:08.4]} 43. Rf5+ {[%clk 0:00:09.1]} 43... Bf4 {[%clk 0:00:06.3]} 44. Rf1+
{[%clk 0:00:09.5]} 44... Ke3 {[%clk 0:00:07.4]} 45. R5xf4 {[%clk 0:00:10.3]}
45... d3 {[%clk 0:00:08.9]} 46. g5 {[%clk 0:00:11.5]} 46... c3 {[%clk
0:00:04.8]} 47. g6 {[%clk 0:00:08.9]} 47... Rd7 {[%clk 0:00:05.1]} 48. R4f3+
{[%clk 0:00:08.5]} 48... Kd4 {[%clk 0:00:04.5]} 49. h5 {[%clk 0:00:06.1]} 49...
c2 {[%clk 0:00:05.1]} 50. Rxf6 {[%clk 0:00:02.7]} 50... d2 {[%clk 0:00:05.5]}
51. R6f4+ {[%clk 0:00:03.6]} 51... Kc3 {[%clk 0:00:06.2]} 52. R4f3+ {[%clk
0:00:04.6]} 52... Kb2 {[%clk 0:00:07.3]} 53. h6 {[%clk 0:00:05.5]} 53... d1=Q
{[%clk 0:00:08.1]} 0-1

[Event "*** Titled Tuesday Blitz"]
[Site "Chess.com"]
[Date "2019.10.01"]
[Round "3"]
[White "IMTominho"]
[Black "Karacsonyi_Gellert"]
[Result "1-0"]
[WhiteElo "2775"]
[BlackElo "2535"]
[TimeControl "180+2"]
[EndTime "13:38:51 PDT"]
[Termination "IMTominho won by checkmate"]

1. d4 {[%clk 0:03:01.9]} 1... Nf6 {[%clk 0:03:00.5]} 2. c4 {[%clk 0:03:02.6]}
2... e6 {[%clk 0:03:01.6]} 3. Nf3 {[%clk 0:03:03.2]} 3... d5 {[%clk 0:03:01.4]}
4. Bg5 {[%clk 0:03:03.6]} 4... Nbd7 {[%clk 0:03:01.6]} 5. e3 {[%clk 0:03:04.3]}
5... h6 {[%clk 0:03:02.7]} 6. Bh4 {[%clk 0:03:04.9]} 6... Be7 {[%clk 0:03:03.8]}
7. Nc3 {[%clk 0:03:05.5]} 7... O-O {[%clk 0:03:04.3]} 8. Rc1 {[%clk 0:03:04.2]}
8... c5 {[%clk 0:03:05.4]} 9. cxd5 {[%clk 0:03:04.7]} 9... Nxd5 {[%clk
0:03:05.9]} 10. Bg3 {[%clk 0:02:58]} 10... N7f6 {[%clk 0:03:02.6]} 11. Nxd5
{[%clk 0:02:42]} 11... Nxd5 {[%clk 0:03:02]} 12. dxc5 {[%clk 0:02:42.7]} 12...
Qa5+ {[%clk 0:02:50.6]} 13. Qd2 {[%clk 0:02:42.1]} 13... Qxa2 {[%clk 0:02:50.5]}
14. Bc4 {[%clk 0:02:42.8]} 14... Qa4 {[%clk 0:02:45]} 15. Bxd5 {[%clk
0:02:39.7]} 15... exd5 {[%clk 0:02:37.7]} 16. O-O {[%clk 0:02:39.2]} 16... Be6
{[%clk 0:02:34.4]} 17. Be5 {[%clk 0:02:36.9]} 17... Rac8 {[%clk 0:02:28.7]} 18.
Bd4 {[%clk 0:02:27.8]} 18... Qb5 {[%clk 0:02:27.3]} 19. Qc3 {[%clk 0:02:25.1]}
19... f6 {[%clk 0:02:00.5]} 20. b4 {[%clk 0:02:10.9]} 20... Rc6 {[%clk
0:01:53.9]} 21. Ra1 {[%clk 0:02:08.5]} 21... a6 {[%clk 0:01:52.9]} 22. Rfc1
{[%clk 0:01:55.5]} 22... b6 {[%clk 0:01:40]} 23. h3 {[%clk 0:01:49.6]} 23...
Rfc8 {[%clk 0:01:36.8]} 24. Rab1 {[%clk 0:01:20.7]} 24... Bf5 {[%clk 0:01:12.8]}
25. Rb2 {[%clk 0:00:46.5]} 25... Qd3 {[%clk 0:01:12.8]} 26. Qxd3 {[%clk
0:00:39.1]} 26... Bxd3 {[%clk 0:01:13.7]} 27. Rd1 {[%clk 0:00:40.6]} 27... bxc5
{[%clk 0:01:15.1]} 28. Bxc5 {[%clk 0:00:34.3]} 28... Bxc5 {[%clk 0:01:10.1]} 29.
bxc5 {[%clk 0:00:32.9]} 29... Bc4 {[%clk 0:01:00.4]} 30. Nd4 {[%clk 0:00:30.3]}
30... Rxc5 {[%clk 0:01:01.6]} 31. Rb7 {[%clk 0:00:27.9]} 31... R5c7 {[%clk
0:00:56.3]} 32. Rdb1 {[%clk 0:00:28.5]} 32... a5 {[%clk 0:00:52.6]} 33. Ne6
{[%clk 0:00:27.9]} 33... Rxb7 {[%clk 0:00:38.1]} 34. Rxb7 {[%clk 0:00:29.3]}
34... Ra8 {[%clk 0:00:33.8]} 35. Nc7 {[%clk 0:00:25.8]} 35... Rc8 {[%clk
0:00:29.6]} 36. Ra7 {[%clk 0:00:26.2]} 36... a4 {[%clk 0:00:15.5]} 37. Ne6
{[%clk 0:00:25.7]} 37... Bb3 {[%clk 0:00:16.8]} 38. Rxg7+ {[%clk 0:00:26.1]}
38... Kh8 {[%clk 0:00:18.1]} 39. Ra7 {[%clk 0:00:28]} 39... Rc1+ {[%clk
0:00:18]} 40. Kh2 {[%clk 0:00:29.1]} 40... Rc2 {[%clk 0:00:19.3]} 41. Kg3 {[%clk
0:00:29.6]} 41... Ra2 {[%clk 0:00:19.6]} 42. Nc5 {[%clk 0:00:26.5]} 42... Bd1
{[%clk 0:00:17.8]} 43. Nd7 {[%clk 0:00:26]} 43... a3 {[%clk 0:00:13.4]} 44. Nxf6
{[%clk 0:00:25.7]} 44... Bc2 {[%clk 0:00:14.7]} 45. f4 {[%clk 0:00:24.8]} 45...
Bd3 {[%clk 0:00:11.7]} 46. Kg4 {[%clk 0:00:23.7]} 46... Rxg2+ {[%clk 0:00:11.9]}
47. Kh5 {[%clk 0:00:20.9]} 47... a2 {[%clk 0:00:11.6]} 48. Nxd5 {[%clk
0:00:13.2]} 48... Bb1 {[%clk 0:00:08.3]} 49. Nf6 {[%clk 0:00:11]} 49... Rg6
{[%clk 0:00:09.7]} 50. Rh7# {[%clk 0:00:07.2]} 1-0

[Event "*** Titled Tuesday Blitz"]
[Site "Chess.com"]
[Date "2019.10.01"]
[Round "3"]
[White "sandropozo"]
[Black "Zarikovs1999"]
[Result "1-0"]
[WhiteElo "2619"]
[BlackElo "2411"]
[TimeControl "180+2"]
[EndTime "13:38:55 PDT"]
[Termination "sandropozo won by resignation"]

1. d4 {[%clk 0:03:00.2]} 1... Nf6 {[%clk 0:03:00.8]} 2. Nf3 {[%clk 0:03:01.6]}
2... e6 {[%clk 0:03:02.2]} 3. Bf4 {[%clk 0:03:02.8]} 3... d5 {[%clk 0:03:02.5]}
4. e3 {[%clk 0:03:03.9]} 4... c5 {[%clk 0:03:02]} 5. Nbd2 {[%clk 0:03:04.7]}
5... Bd6 {[%clk 0:03:03.4]} 6. Bg3 {[%clk 0:03:05.7]} 6... Nc6 {[%clk
0:03:04.3]} 7. c3 {[%clk 0:03:06.7]} 7... Bxg3 {[%clk 0:03:05.6]} 8. hxg3 {[%clk
0:03:07.9]} 8... Qd6 {[%clk 0:03:07.5]} 9. Bd3 {[%clk 0:03:05.1]} 9... e5 {[%clk
0:03:08.9]} 10. Nxe5 {[%clk 0:03:06.2]} 10... Nxe5 {[%clk 0:03:09.4]} 11. dxe5
{[%clk 0:03:07.9]} 11... Qxe5 {[%clk 0:03:11.3]} 12. Qa4+ {[%clk 0:03:09.1]}
12... Bd7 {[%clk 0:03:06.7]} 13. Qf4 {[%clk 0:03:10.6]} 13... Qxf4 {[%clk
0:03:04.2]} 14. gxf4 {[%clk 0:03:12.5]} 14... Ke7 {[%clk 0:03:06.1]} 15. a4
{[%clk 0:03:06]} 15... Bc6 {[%clk 0:03:01.9]} 16. Nf3 {[%clk 0:03:05.9]} 16...
Nd7 {[%clk 0:02:50.5]} 17. b4 {[%clk 0:02:58.5]} 17... cxb4 {[%clk 0:02:50]} 18.
cxb4 {[%clk 0:02:59.1]} 18... b6 {[%clk 0:02:41.1]} 19. Nd4 {[%clk 0:02:59]}
19... Rac8 {[%clk 0:02:33.8]} 20. Ba6 {[%clk 0:02:30.3]} 20... Rc7 {[%clk
0:02:22.5]} 21. Rc1 {[%clk 0:02:20.4]} 21... Nb8 {[%clk 0:02:18]} 22. Bb5 {[%clk
0:01:37]} 22... Rhc8 {[%clk 0:02:06.5]} 23. Rxh7 {[%clk 0:01:30.4]} 23... Kf6
{[%clk 0:01:46.4]} 24. Rh5 {[%clk 0:01:19]} 24... Bxb5 {[%clk 0:01:34.5]} 25.
Rxc7 {[%clk 0:01:18.3]} 25... Rxc7 {[%clk 0:01:36.4]} 26. axb5 {[%clk
0:01:18.5]} 26... Rc4 {[%clk 0:01:16.6]} 27. Rxd5 {[%clk 0:01:10.5]} 27... Ke7
{[%clk 0:01:18]} 28. Re5+ {[%clk 0:00:48.3]} 28... Kd8 {[%clk 0:01:19.2]} 29.
Rg5 {[%clk 0:00:42.3]} 29... g6 {[%clk 0:01:17.3]} 30. f5 {[%clk 0:00:43.1]}
30... gxf5 {[%clk 0:01:17.3]} 31. Rxf5 {[%clk 0:00:39.9]} 31... Ke7 {[%clk
0:01:13.8]} 32. Re5+ {[%clk 0:00:40.5]} 32... Kd8 {[%clk 0:01:14.5]} 33. Rh5
{[%clk 0:00:35.8]} 33... Rxb4 {[%clk 0:01:07.9]} 34. Rh8+ {[%clk 0:00:36.4]}
34... Kc7 {[%clk 0:01:08]} 35. Rf8 {[%clk 0:00:37.3]} 35... a5 {[%clk
0:00:55.5]} 36. Rxf7+ {[%clk 0:00:31.4]} 36... Nd7 {[%clk 0:00:56.2]} 37. Kd2
{[%clk 0:00:20.8]} 37... a4 {[%clk 0:00:54.6]} 38. Kc3 {[%clk 0:00:20.9]} 38...
Rb1 {[%clk 0:00:56.1]} 39. Nc2 {[%clk 0:00:16]} 39... Rb3+ {[%clk 0:00:50.8]}
40. Kc4 {[%clk 0:00:15.7]} 40... Kd6 {[%clk 0:00:52.4]} 41. f4 {[%clk
0:00:16.5]} 41... Rb2 {[%clk 0:00:50.5]} 42. Kc3 {[%clk 0:00:16.3]} 42... Rb3+
{[%clk 0:00:51.8]} 43. Kc4 {[%clk 0:00:16]} 43... Rb2 {[%clk 0:00:50.8]} 44. Nb4
{[%clk 0:00:12]} 44... a3 {[%clk 0:00:34.2]} 45. Rh7 {[%clk 0:00:12.7]} 45...
Nc5 {[%clk 0:00:26.5]} 46. Rh6+ {[%clk 0:00:13]} 46... Ke7 {[%clk 0:00:22.6]}
47. Rh1 {[%clk 0:00:08]} 47... Rxg2 {[%clk 0:00:18.7]} 48. Ra1 {[%clk
0:00:06.7]} 48... Re2 {[%clk 0:00:09.7]} 49. Rxa3 {[%clk 0:00:07.8]} 49... Kd6
{[%clk 0:00:11.3]} 50. Rc3 {[%clk 0:00:08.6]} 50... Rb2 {[%clk 0:00:08.5]} 51.
Nd3 {[%clk 0:00:09.3]} 51... Rd2 {[%clk 0:00:03.1]} 52. Nxc5 {[%clk 0:00:10.8]}
52... bxc5 {[%clk 0:00:05]} 53. Rd3+ {[%clk 0:00:12.2]} 53... Rxd3 {[%clk
0:00:06.9]} 54. Kxd3 {[%clk 0:00:13.9]} 54... Kd5 {[%clk 0:00:08.8]} 55. e4+
{[%clk 0:00:14.8]} 1-0

[Event "*** Titled Tuesday Blitz"]
[Site "Chess.com"]
[Date "2019.10.01"]
[Round "3"]
[White "Alex_Terzi"]
[Black "Aariow"]
[Result "1-0"]
[WhiteElo "2616"]
[BlackElo "2403"]
[TimeControl "180+2"]
[EndTime "13:38:55 PDT"]
[Termination "Alex_Terzi won by resignation"]

1. e4 {[%clk 0:03:01.9]} 1... e5 {[%clk 0:02:59.3]} 2. Nf3 {[%clk 0:03:01.5]}
2... Nc6 {[%clk 0:03:00.4]} 3. Bb5 {[%clk 0:03:02.5]} 3... a6 {[%clk 0:03:01]}
4. Ba4 {[%clk 0:03:03.1]} 4... Nf6 {[%clk 0:03:01.7]} 5. d3 {[%clk 0:03:04.6]}
5... d6 {[%clk 0:03:00.9]} 6. c4 {[%clk 0:03:05.1]} 6... g6 {[%clk 0:02:59.1]}
7. Nc3 {[%clk 0:03:05.8]} 7... Bg7 {[%clk 0:02:59.9]} 8. h3 {[%clk 0:03:06.5]}
8... O-O {[%clk 0:03:01]} 9. Be3 {[%clk 0:03:07.5]} 9... Bd7 {[%clk 0:02:58.7]}
10. Nd5 {[%clk 0:03:04.7]} 10... Nxd5 {[%clk 0:02:38.9]} 11. cxd5 {[%clk
0:03:05.5]} 11... Nd4 {[%clk 0:02:36.1]} 12. Bxd4 {[%clk 0:02:59.4]} 12... exd4
{[%clk 0:02:37.1]} 13. Bxd7 {[%clk 0:02:55.4]} 13... Qxd7 {[%clk 0:02:38.4]} 14.
O-O {[%clk 0:02:50.5]} 14... h6 {[%clk 0:02:39.7]} 15. Qb3 {[%clk 0:02:46.2]}
15... c5 {[%clk 0:02:34.6]} 16. dxc6 {[%clk 0:02:22.9]} 16... bxc6 {[%clk
0:02:35.5]} 17. Qa4 {[%clk 0:02:21.3]} 17... Rfb8 {[%clk 0:02:04]} 18. b3 {[%clk
0:02:21.6]} 18... Qc7 {[%clk 0:02:00.2]} 19. Rac1 {[%clk 0:02:16.4]} 19... c5
{[%clk 0:01:55.4]} 20. Nxd4 {[%clk 0:02:15.9]} 20... a5 {[%clk 0:01:45.5]} 21.
Qc6 {[%clk 0:02:01.3]} 21... Qxc6 {[%clk 0:01:22.3]} 22. Nxc6 {[%clk 0:02:01.2]}
22... Rb7 {[%clk 0:01:24.2]} 23. d4 {[%clk 0:01:48.6]} 23... Ra6 {[%clk
0:01:10]} 24. d5 {[%clk 0:01:36.3]} 24... a4 {[%clk 0:01:11.4]} 25. e5 {[%clk
0:01:26.4]} 25... dxe5 {[%clk 0:01:08.5]} 26. Rxc5 {[%clk 0:01:25.8]} 26... axb3
{[%clk 0:01:09.7]} 27. axb3 {[%clk 0:01:27.7]} 27... Rxb3 {[%clk 0:01:06.6]} 28.
d6 {[%clk 0:01:21.2]} 28... Rd3 {[%clk 0:01:06.9]} 29. d7 {[%clk 0:01:21.3]}
29... Rxc6 {[%clk 0:00:55.7]} 30. Rxc6 {[%clk 0:01:21]} 30... Rxd7 {[%clk
0:00:57.6]} 31. Rfc1 {[%clk 0:01:19.8]} 31... Bf8 {[%clk 0:00:27.8]} 32. Rc7
{[%clk 0:01:15]} 32... Rxc7 {[%clk 0:00:27.8]} 33. Rxc7 {[%clk 0:01:16.9]} 33...
Bb4 {[%clk 0:00:26.7]} 34. Kf1 {[%clk 0:01:17.5]} 34... Kg7 {[%clk 0:00:26.6]}
35. g4 {[%clk 0:01:09.5]} 35... h5 {[%clk 0:00:26]} 36. g5 {[%clk 0:01:05.5]}
36... h4 {[%clk 0:00:24.6]} 37. Ke2 {[%clk 0:01:01.1]} 37... Bd6 {[%clk
0:00:20.8]} 38. Rd7 {[%clk 0:00:58.3]} 38... Ba3 {[%clk 0:00:21]} 39. Kf3 {[%clk
0:00:58.6]} 39... Bc5 {[%clk 0:00:20.9]} 40. Rc7 {[%clk 0:00:52.1]} 40... Bd4
{[%clk 0:00:21.5]} 41. Rb7 {[%clk 0:00:47.1]} 41... Kf8 {[%clk 0:00:22.3]} 42.
Rc7 {[%clk 0:00:39.7]} 42... Kg7 {[%clk 0:00:23.2]} 43. Rc2 {[%clk 0:00:33]}
43... f5 {[%clk 0:00:24.4]} 44. gxf6+ {[%clk 0:00:27.2]} 44... Kxf6 {[%clk
0:00:25.4]} 45. Kg4 {[%clk 0:00:28.5]} 45... e4 {[%clk 0:00:22]} 46. Kxh4 {[%clk
0:00:24.6]} 46... Kf5 {[%clk 0:00:22.9]} 47. Kg3 {[%clk 0:00:25.4]} 47... g5
{[%clk 0:00:22.6]} 48. Rc8 {[%clk 0:00:24]} 48... Be5+ {[%clk 0:00:23.6]} 49.
Kg2 {[%clk 0:00:25]} 49... Bf4 {[%clk 0:00:22.1]} 50. Rc5+ {[%clk 0:00:24]}
50... Be5 {[%clk 0:00:19.7]} 51. Rb5 {[%clk 0:00:24.5]} 51... Kf4 {[%clk
0:00:20.9]} 52. Rb7 {[%clk 0:00:25]} 52... Bd4 {[%clk 0:00:21.6]} 53. Rf7+
{[%clk 0:00:24.1]} 53... Ke5 {[%clk 0:00:22.2]} 54. Kg3 {[%clk 0:00:25]} 54...
e3 {[%clk 0:00:23.3]} 55. Re7+ {[%clk 0:00:19.9]} 55... Kf6 {[%clk 0:00:24.1]}
56. Rxe3 {[%clk 0:00:20.3]} 1-0

[Event "*** Titled Tuesday Blitz"]
[Site "Chess.com"]
[Date "2019.10.01"]
[Round "3"]
[White "Vojtap"]
[Black "dolynachess"]
[Result "0-1"]
[WhiteElo "2179"]
[BlackElo "2417"]
[TimeControl "180+2"]
[EndTime "13:38:57 PDT"]
[Termination "dolynachess won by resignation"]

1. e4 {[%clk 0:03:01.4]} 1... d5 {[%clk 0:03:00.7]} 2. exd5 {[%clk 0:03:01.6]}
2... Qxd5 {[%clk 0:03:02.6]} 3. Nc3 {[%clk 0:03:02.3]} 3... Qd8 {[%clk
0:03:02.5]} 4. d4 {[%clk 0:03:02.7]} 4... Nf6 {[%clk 0:03:03.6]} 5. Bc4 {[%clk
0:03:01.1]} 5... a6 {[%clk 0:03:03.7]} 6. a4 {[%clk 0:03:00.6]} 6... Bf5 {[%clk
0:03:03.6]} 7. Nf3 {[%clk 0:02:59.5]} 7... e6 {[%clk 0:03:04.3]} 8. O-O {[%clk
0:02:59.4]} 8... Be7 {[%clk 0:03:03.4]} 9. Ne5 {[%clk 0:02:57.7]} 9... O-O
{[%clk 0:03:02.7]} 10. Be3 {[%clk 0:02:43.5]} 10... Nbd7 {[%clk 0:03:01.6]} 11.
Qf3 {[%clk 0:02:38]} 11... c6 {[%clk 0:02:54.5]} 12. Bb3 {[%clk 0:02:29.5]}
12... a5 {[%clk 0:02:53.5]} 13. Rad1 {[%clk 0:02:26.3]} 13... Qc7 {[%clk
0:02:51.6]} 14. Bf4 {[%clk 0:02:16.3]} 14... Bd6 {[%clk 0:02:43.6]} 15. Qe2
{[%clk 0:01:42.3]} 15... Rad8 {[%clk 0:02:36]} 16. Rfe1 {[%clk 0:01:41.2]} 16...
Nd5 {[%clk 0:02:19.7]} 17. Nxd5 {[%clk 0:01:36]} 17... exd5 {[%clk 0:02:20]} 18.
Qf3 {[%clk 0:01:33.4]} 18... Rfe8 {[%clk 0:02:11.6]} 19. Qg3 {[%clk 0:01:03.3]}
19... f6 {[%clk 0:01:26.2]} 20. Nd3 {[%clk 0:00:48.2]} 20... Bxf4 {[%clk
0:01:25.9]} 21. Nxf4 {[%clk 0:00:50.1]} 21... Nf8 {[%clk 0:01:18.8]} 22. c4
{[%clk 0:00:34.4]} 22... Ng6 {[%clk 0:01:19.2]} 23. Rxe8+ {[%clk 0:00:28.7]}
23... Rxe8 {[%clk 0:01:19.5]} 24. Nxg6 {[%clk 0:00:28]} 24... Qxg3 {[%clk
0:01:17.6]} 25. hxg3 {[%clk 0:00:29.9]} 25... Bxg6 {[%clk 0:01:13.6]} 26. cxd5
{[%clk 0:00:29.8]} 26... Bf7 {[%clk 0:01:14.1]} 27. Kf1 {[%clk 0:00:22.2]} 27...
Kf8 {[%clk 0:01:10.3]} 28. Rc1 {[%clk 0:00:20.8]} 28... cxd5 {[%clk 0:00:46.2]}
29. Rc7 {[%clk 0:00:22.7]} 29... Re7 {[%clk 0:00:42.5]} 30. Rc8+ {[%clk
0:00:21.6]} 30... Re8 {[%clk 0:00:41.7]} 31. Rc5 {[%clk 0:00:22.3]} 31... Re4
{[%clk 0:00:39.8]} 32. Bxd5 {[%clk 0:00:19]} 32... Bxd5 {[%clk 0:00:40.2]} 33.
Rxd5 {[%clk 0:00:19.6]} 33... b6 {[%clk 0:00:36.4]} 34. f3 {[%clk 0:00:16.8]}
34... Re3 {[%clk 0:00:34.7]} 35. Rb5 {[%clk 0:00:17.4]} 35... Rd3 {[%clk
0:00:34.5]} 36. d5 {[%clk 0:00:18]} 36... Ke7 {[%clk 0:00:33.1]} 37. Ke2 {[%clk
0:00:15.3]} 37... Rd4 {[%clk 0:00:33.9]} 38. b3 {[%clk 0:00:14.9]} 38... g5
{[%clk 0:00:32.2]} 39. Rxb6 {[%clk 0:00:15.5]} 39... Rxd5 {[%clk 0:00:32.4]} 40.
Ra6 {[%clk 0:00:15.5]} 40... h5 {[%clk 0:00:31.2]} 41. Ke3 {[%clk 0:00:16.5]}
41... h4 {[%clk 0:00:31.1]} 42. gxh4 {[%clk 0:00:17.4]} 42... gxh4 {[%clk
0:00:33]} 43. Ke4 {[%clk 0:00:17.7]} 43... Rg5 {[%clk 0:00:33.6]} 44. Kf4 {[%clk
0:00:16.1]} 44... Kf7 {[%clk 0:00:30.9]} 45. Ra7+ {[%clk 0:00:12.1]} 45... Kg6
{[%clk 0:00:31.7]} 46. Rb7 {[%clk 0:00:10.8]} 46... Rxg2 {[%clk 0:00:31.2]} 47.
Rb5 {[%clk 0:00:11.2]} 47... h3 {[%clk 0:00:31.2]} 48. Rb8 {[%clk 0:00:10.2]}
48... Kg7 {[%clk 0:00:29]} 49. Rb7+ {[%clk 0:00:10]} 49... Kg6 {[%clk
0:00:29.1]} 50. Rb8 {[%clk 0:00:11.1]} 50... h2 {[%clk 0:00:25.3]} 51. Rh8
{[%clk 0:00:11.4]} 51... Rb2 {[%clk 0:00:25.5]} 52. Rxh2 {[%clk 0:00:11.3]}
52... Rxh2 {[%clk 0:00:25.3]} 53. b4 {[%clk 0:00:10.9]} 53... axb4 {[%clk
0:00:25.3]} 54. a5 {[%clk 0:00:11.7]} 54... Ra2 {[%clk 0:00:26.1]} 0-1